[Event "Kvika Banki League Iceland 2022-23"]
[Site "Reykjavik"]
[Date "2022.10.15"]
[Round "3.2"]
[White "Danielsen, Henrik"]
[Black "Kazakouski, Valery"]
[Result "0-1"]
[ECO "A46"]
[WhiteElo "2521"]
[BlackElo "2538"]
[Annotator "TA"]
[PlyCount "88"]
[EventDate "2022.10.13"]
[EventType "team-tourn"]
[EventCountry "ISL"]
[SourceTitle "playchess.com"]
[Source "ChessBase"]
[SourceQuality "1"]
[TimeControl "5400+30"]

{[%evp 15,88,5,6,6,42,-5,0,14,16,0,0,-8,-8,-12,0,0,0,0,0,0,0,0,0,0,0,0,0,0,9,8,7,0,0,0,34,-10,-20,-18,-14,-12,0,0,0,0,2,0,0,0,0,0,0,0,0,0,0,0,0,-270,-260,-237,-254,-260,-262,-364,-361,-349,-349,-361,-339,-341,-329,-369,-364,-334,-322]} 1. d4 {[%emt 0:00:16]} Nf6 {[%emt 0:02:30]} 2. Nf3 {[%emt 0:00:03]} e6 {[%emt 0:00:10]} 3. g3 {[%emt 0:03:45]} b5 {[%emt 0:00:27]} 4. Bg2 {[%emt 0:00:12]} Bb7 {[%emt 0:00:32]} 5. O-O {[%emt 0:00:15]} c5 {[%emt 0:00:17]} 6. c3 {[%emt 0:00:37]} Na6 {[%emt 0:02:09]} 7. Bg5 {[%emt 0:00:17]} Be7 {[%emt 0:00:27]} 8. Nbd2 {[%emt 0:00:10]} O-O {[%emt 0:00:20]} 9. a3 {[%emt 0:04:45] [#] A46: 1 d4 Nf6 2 Nf3 e6: Torre, London and Colle Systems.} Qb6 $1 $146 {[%emt 0:03:11][%mdl 8] A relevant novelty.} ({Predecessor:} 9... h6 10. Bxf6 Bxf6 11. b4 d6 12. e3 Qb6 13. Qe2 cxd4 14. cxd4 Rac8 15. Rfc1 Nb8 16. Nb3 Be4 {½-½ (45) Ramirez Alvarez,A (2568)-Perelshteyn,E (2513) Reykjavik 2018}) 10. e3 {[%emt 0:03:01]} (10. e4 $14) 10... Rfc8 {[%emt 0:02:17]} 11. Qe2 {[%emt 0:02:47] The position is equal.} cxd4 {[%emt 0:03:04]} 12. exd4 {[%emt 0:01:28]} Nc7 {[%emt 0:03:12][%cal Ba6c7,Bc7e8,Be8d6][%mdl 32]} (12... h6 {feels hotter.} 13. Bxf6 Bxf6 14. Ne5 Bxg2 15. Kxg2 Bxe5 16. dxe5 Nc5) 13. Bxf6 {[%emt 0:04:42]} (13. Ne5 {with more complications.} Bxg2 14. Kxg2 d6 15. Bxf6 Bxf6 16. Ng4) 13... Bxf6 {[%emt 0:04:19]} 14. Ne4 {[%emt 0:01:09]} (14. Ne5 {feels hotter.} Bxg2 15. Kxg2 d6 16. Nd3) 14... Bxe4 {[%emt 0:08:40]} 15. Qxe4 {[%emt 0:00:08]} d5 {[%emt 0:00:10]} 16. Qf4 {[%emt 0:17:11]} a5 {[%emt 0:07:49]} 17. g4 {[%emt 0:08:44][%cal Bg3g4,Bg4g5][%mdl 32]} Ne8 {[%emt 0:05:32]} 18. g5 {[%emt 0:07:11]} Be7 {[%emt 0:06:42]} 19. Ne5 {[%emt 0:00:45]} Nd6 {[%emt 0:02:16]} 20. Rfe1 {[%emt 0:00:44]} Ra7 {[%emt 0:07:13]} 21. h4 {[%emt 0:05:40]} Rf8 {[%emt 0:08:27]} 22. Qg4 {[%emt 0:04:56]} (22. h5 {is interesting.} g6 23. Rad1 Ne8 24. Rd3) 22... Nc4 {[%emt 0:05:48]} 23. Nxc4 {[%emt 0:03:11]} bxc4 {[%emt 0:00:34]} 24. Re2 {[%emt 0:00:04]} Qb8 {[%emt 0:04:32]} 25. f4 {[%emt 0:01:53][%cal Bf2f4,Bf4f5,Bf5e6][%mdl 32]} (25. h5 $5 {[%cal Rg5g6]}) 25... Rb7 {[%emt 0:05:13]} 26. f5 $1 {[%emt 0:02:27]} Rxb2 {[%emt 0:03:32]} 27. fxe6 {[%emt 0:00:27]} Rb1+ {[%emt 0:03:47]} 28. Re1 {[%emt 0:02:02]} Rxe1+ {[%emt 0:02:06]} (28... Rb2 $2 29. exf7+ Rxf7 30. Qh3 $16) 29. Rxe1 {[%emt 0:00:04] [#] aiming for exf7+.} f5 {[%emt 0:01:08]} 30. Qf3 {[%emt 0:01:58]} Qb2 {[%emt 0:01:21]} 31. a4 {[%emt 0:01:01]} g6 {[%emt 0:05:02]} 32. Re5 {[%emt 0:05:34]} Qc1+ {[%emt 0:00:42]} 33. Bf1 {[%emt 0:00:26]} Rd8 {[%emt 0:00:02]} 34. Rxd5 {[%emt 0:00:55]} Rxd5 {[%emt 0:00:37]} 35. Qxd5 {[%emt 0:00:09]} Qxc3 {[%emt 0:00:12] [#] Strongly threatening ...Qg3+.} 36. Qxc4 $2 $11 {[%emt 0:02:22][%mdl 12288] Endgame KQB-KQB} ({But not} 36. Qe5 Qb4 37. Qc7 c3 $15) (36. Bxc4 $11 {and White stays safe.} Qe1+ 37. Kg2) 36... Qg3+ {[%emt 0:00:20]} 37. Bg2 {[%emt 0:00:15]} Qe1+ {[%emt 0:00:47]} ({Weaker is} 37... Qxh4 38. Qc3) 38. Bf1 {[%emt 0:01:31]} Qxh4 {[%emt 0:00:16]} 39. d5 {[%emt 0:01:54]} Qxg5+ {[%emt 0:01:07]} 40. Kf2 {[%emt 0:00:49]} Qd2+ {[%emt 0:01:11]} 41. Be2 {[%emt 0:00:25]} Kg7 {[%emt 0:00:15]} 42. Kf1 {[%emt 0:00:44]} Bd6 {[%emt 0:00:58] Inhibits Qc7+. ...Bg3 is the strong threat.} 43. Bd3 {[%emt 0:04:39]} Qe3 {[%emt 0:00:46] Inhibits Qd4+. And now ...Bc5 would win.} 44. Qc3+ {[%emt 0:04:32]} Kh6 {[%emt 0:00:14] Weighted Error Value: White=0.22 (precise) /Black=0.05 (flawless)} 0-1

[Event "Kvika Banki League Iceland 2022-23"]
[Site "Reykjavik"]
[Date "2022.10.15"]
[Round "3.3"]
[White "Ragnarsson, Dagur"]
[Black "Ahlander, Bjorn"]
[Result "1/2-1/2"]
[ECO "D38"]
[WhiteElo "2348"]
[BlackElo "2406"]
[Annotator "TA"]
[PlyCount "103"]
[EventDate "2022.10.13"]
[EventType "team-tourn"]
[EventCountry "ISL"]
[SourceTitle "playchess.com"]
[Source "ChessBase"]
[SourceQuality "1"]
[TimeControl "5400+30"]

{[%evp 14,103,14,20,16,10,13,12,26,26,39,35,55,58,54,54,41,19,29,31,33,29,46,0,8,0,12,11,15,14,17,0,0,0,17,4,28,23,33,24,24,0,46,25,34,34,52,0,52,34,27,52,31,46,70,33,117,100,131,85,89,33,17,31,24,58,22,45,28,25,45,67,194,180,167,89,84,66,88,74,93,47,64,0,0,0,21,0,30,0,3,0]} 1. d4 {[%emt 0:01:14]} Nf6 {[%emt 0:00:06]} 2. c4 {[%emt 0:00:06]} e6 {[%emt 0:00:03]} 3. Nf3 {[%emt 0:00:20]} d5 {[%emt 0:00:03]} 4. Nc3 {[%emt 0:00:06]} Bb4 {[%emt 0:00:35]} 5. Qa4+ {[%emt 0:00:06]} Nc6 {[%emt 0:00:06]} 6. Bg5 {[%emt 0:00:28]} h6 {[%emt 0:00:16]} 7. Bxf6 {[%emt 0:00:03]} Qxf6 {[%emt 0:00:05]} 8. e3 {[%emt 0:00:06]} O-O {[%emt 0:01:09] D38: Queen's Gambit Declined: Ragozin Defence (4 Nf3 Bb4).} 9. Be2 {[%emt 0:00:31]} dxc4 {[%emt 0:01:06]} 10. Bxc4 {[%emt 0:00:07]} Bd7 {[%emt 0:01:13]} 11. O-O {[%emt 0:03:11] [#]} Rad8 $146 {[%emt 0:10:10]} ({Predecessor:} 11... Bxc3 12. bxc3 Qe7 13. Be2 b6 14. Rad1 Rfd8 15. Qc2 Na5 16. Ne5 Be8 17. Qe4 c5 {1-0 (35) Vidit,S (2723)-Sjugirov,S (2696) Chess.com INT 2022}) 12. Qc2 {[%emt 0:07:17]} Rfe8 {[%emt 0:08:40]} 13. Rfd1 {[%emt 0:14:02]} Bd6 {[%emt 0:02:10]} 14. Ne4 {[%emt 0:00:33]} Qe7 {[%emt 0:00:55]} 15. Be2 {[%emt 0:20:29]} e5 {[%emt 0:05:23]} 16. Nxd6 {[%emt 0:00:07]} cxd6 {[%emt 0:00:58]} 17. d5 {[%emt 0:00:11]} Nb8 {[%emt 0:05:57][%cal Bc6b8,Bb8d7,Bd7b6][%mdl 32]} 18. Qc7 {[%emt 0:01:38]} Bg4 {[%emt 0:04:14]} 19. Rac1 {[%emt 0:01:55]} Nd7 {[%emt 0:11:44]} 20. h3 {[%emt 0:17:10]} Bxf3 {[%emt 0:01:40]} 21. Bxf3 {[%emt 0:00:16]} Nb6 {[%emt 0:05:36]} 22. Qc3 {[%emt 0:04:19]} Rc8 {[%emt 0:07:24]} 23. Qa5 {[%emt 0:00:53]} Rxc1 {[%emt 0:00:10]} 24. Rxc1 {[%emt 0:00:04]} Ra8 {[%emt 0:00:08]} (24... e4 {keeps more tension.} 25. Qxa7 exf3 26. Qxb6 Qg5) 25. e4 {[%emt 0:02:28]} g6 {[%emt 0:01:36]} 26. Rc3 {[%emt 0:02:28]} Kg7 {[%emt 0:01:30]} 27. Rb3 {[%emt 0:02:44]} Qd8 {[%emt 0:03:17]} (27... Rc8 $11) 28. Be2 {[%emt 0:00:59][%cal Bf3e2,Be2f1,Bf1h3][%mdl 32]} Qc7 {[%emt 0:02:55]} 29. Rc3 {[%emt 0:01:18]} Qd8 {[%emt 0:00:43]} 30. Rb3 {[%emt 0:00:15]} Qc7 {[%emt 0:01:37]} 31. h4 {[%emt 0:02:19]} h5 {[%emt 0:08:34]} 32. g3 {[%emt 0:02:34]} Qc2 {[%emt 0:02:23]} 33. Bf1 {[%emt 0:02:54] Threatens to win with Rxb6.} Qc7 {[%emt 0:04:12]} 34. Rc3 {[%emt 0:00:40]} Qd8 {[%emt 0:00:43] [#]} (34... Qd7 $14) 35. Bh3 $1 $16 {[%emt 0:00:19]} Kf8 {[%emt 0:02:24]} 36. Rc2 {[%emt 0:01:31]} (36. a4 $142) 36... Nd7 {[%emt 0:03:55]} 37. Qa3 {[%emt 0:06:41] White has more active pieces.} (37. Qb5 $16 Nb6 38. f3) 37... Nc5 $14 {[%emt 0:00:33]} 38. Rxc5 {[%emt 0:00:06]} dxc5 {[%emt 0:00:40]} 39. Qxc5+ $11 {[%emt 0:00:04][%mdl 4096] Endgame KQR-KQB} Kg7 {[%emt 0:02:52]} 40. d6 {[%emt 0:00:06][%cal Bd5d6,Bd6d7][%mdl 32]} Qf6 {[%emt 0:00:30]} 41. d7 {[%emt 0:01:47] Strongly threatening Qc8.} Rd8 {[%emt 0:00:53]} 42. Qxa7 {[%emt 0:01:04]} b6 {[%emt 0:00:45]} ({Better is} 42... g5 $1 $14) 43. Qc7 $18 {[%emt 0:00:20]} Kf8 {[%emt 0:02:12]} 44. Qc3 {[%emt 0:01:53]} (44. b4 $18) 44... Ke7 {[%emt 0:00:00]} 45. Qe3 {[%emt 0:03:21]} Ra8 {[%emt 0:00:00]} 46. a3 {[%emt 0:00:07]} Qd6 {[%emt 0:00:21]} 47. Qc3 {[%emt 0:01:32]} (47. Qg5+ $16 Qf6 48. Qc1 (48. Qd2 Qc6 $16)) 47... Rd8 {[%emt 0:00:04]} 48. Kg2 {[%emt 0:00:40]} (48. Qc1 $14) 48... Qd4 $11 {[%emt 0:00:28] [#] ...Qxc3 is the strong threat.} 49. Qc2 {[%emt 0:00:42]} Kf8 {[%emt 0:01:12]} 50. Kg1 {[%emt 0:00:06]} Ke7 {[%emt 0:00:07]} (50... f5 $5) 51. Kg2 {[%emt 0:00:49]} Kf8 {[%emt 0:00:02]} 52. Kg1 {[%emt 0:00:08] Weighted Error Value: White=0.15 (very precise) /Black=0.15 (very precise)} 1/2-1/2

[Event "Kvika Banki League Iceland 2022-23"]
[Site "Reykjavik"]
[Date "2022.10.15"]
[Round "3.4"]
[White "Gunnarsson, Arnar"]
[Black "Johannesson, Oliver"]
[Result "1-0"]
[ECO "D42"]
[WhiteElo "2397"]
[BlackElo "2205"]
[Annotator "TA"]
[PlyCount "53"]
[EventDate "2022.10.13"]
[EventType "team-tourn"]
[EventCountry "ISL"]
[SourceTitle "playchess.com"]
[Source "ChessBase"]
[SourceQuality "1"]
[TimeControl "5400+30"]

{[%evp 26,53,43,43,47,53,65,58,127,119,156,170,166,165,150,142,182,191,170,170,175,172,247,218,556,553,524,500,464,464]} 1. c4 {[%emt 0:01:32]} c6 {[%emt 0:00:12]} 2. e4 {[%emt 0:04:40]} d5 {[%emt 0:02:58]} 3. exd5 {[%emt 0:00:37]} cxd5 {[%emt 0:00:09]} 4. cxd5 {[%emt 0:02:18]} Nf6 {[%emt 0:00:56]} 5. Nc3 {[%emt 0:01:17]} Nxd5 {[%emt 0:00:49]} 6. d4 {[%emt 0:00:23]} Nc6 {[%emt 0:02:20]} 7. Nf3 {[%emt 0:05:04]} e6 {[%emt 0:05:25]} 8. Bd3 {[%emt 0:02:29]} Be7 {[%emt 0:00:57]} 9. O-O {[%emt 0:00:53]} O-O {[%emt 0:00:24]} 10. Re1 {[%emt 0:02:03]} Nxc3 {[%emt 0:08:03]} 11. bxc3 {[%emt 0:00:17]} b6 {[%emt 0:00:17]} 12. Qe2 {[%emt 0:10:48]} Bb7 {[%emt 0:02:21]} 13. Qe4 {[%emt 0:00:33]} g6 {[%emt 0:00:21]} 14. Bh6 {[%emt 0:00:23]} Re8 {[%emt 0:00:38] D42: Queen's Gambit Declined: Semi-Tarrasch: 5 cxd5 Nxd5 6 e3 Nc6 7 Bd3 .} 15. Qg4 {[%emt 0:01:38][%cal Oe1e6]} Bf6 {[%emt 0:04:59] [#]} 16. Ng5 $146 {[%emt 0:18:29] White has more active pieces.} ({Predecessor:} 16. Rad1 Bg7 17. Bxg7 Kxg7 18. Re3 Qf6 19. Rde1 Red8 20. Ng5 Rd5 21. h4 Nd8 22. Rf3 {0-1 (81) Biebinger,G (2290)-Meier,V (2240) Germany 1990}) 16... Bxg5 {[%emt 0:27:47]} (16... Ne5 $2 17. dxe5 Bxg5 18. Qxg5 $18) ({Black should try} 16... Qd7 $14) 17. Bxg5 $16 {[%emt 0:00:38]} ({Don't play} 17. Qxg5 $6 Qxg5 18. Bxg5 Kg7 $11) 17... f6 {[%emt 0:00:50]} 18. Bh6 {[%emt 0:02:00]} f5 {[%emt 0:00:59]} 19. Qg3 {[%emt 0:01:06]} Qd7 {[%emt 0:04:29]} 20. h4 {[%emt 0:03:46]} Rac8 {[%emt 0:00:56]} 21. h5 {[%emt 0:01:16]} Qf7 {[%emt 0:00:57]} 22. hxg6 {[%emt 0:02:41]} hxg6 {[%emt 0:01:49]} 23. Bf4 {[%emt 0:04:59] A strong pair of Bishops.} Nb8 {[%emt 0:02:29]} (23... Ne7 $142) 24. Bb5 {[%emt 0:04:47]} Rf8 {[%emt 0:06:38]} (24... Bc6) 25. Re3 $18 {[%emt 0:00:22] White is clearly winning.} a6 {[%emt 0:00:39] [#]} 26. Rae1 $1 {[%emt 0:00:51][%cal Oe3e6]} Bd5 {[%emt 0:03:28]} 27. c4 {[%emt 0:04:46] Black did not feel at home in the position after the opening.  Weighted Error Value: White=0.04 (flawless) /Black=0.48} 1-0

[Event "Kvika Banki League Iceland 2022-23"]
[Site "Reykjavik"]
[Date "2022.10.15"]
[Round "3.5"]
[White "Halldorsson, Jon Arni"]
[Black "Hansen, Soren Bech"]
[Result "1/2-1/2"]
[ECO "A88"]
[WhiteElo "2057"]
[BlackElo "2275"]
[Annotator "TA"]
[PlyCount "98"]
[EventDate "2022.10.13"]
[EventType "team-tourn"]
[EventCountry "ISL"]
[SourceTitle "playchess.com"]
[Source "ChessBase"]
[SourceQuality "1"]
[TimeControl "5400+30"]

{[%evp 17,98,33,47,-11,-6,-3,-14,-37,-16,-91,-41,-41,-21,-22,0,0,0,0,17,-53,-47,-40,-16,-31,-22,-25,-20,-14,0,0,0,7,2,-20,-25,-33,-54,-64,-3,-44,-43,-52,-47,-166,-124,-173,-121,-207,-193,-266,-32,-32,-32,-39,-25,-39,-7,-7,-7,-66,-7,-7,-7,-7,0,-258,-58,-58,-37,-136,0,-18,0,0,0,0,0,0,0,0,0,0,0]} 1. d4 {[%emt 0:00:04]} f5 {[%emt 0:01:16]} 2. g3 {[%emt 0:00:20]} Nf6 {[%emt 0:00:06]} 3. Bg2 {[%emt 0:00:09]} g6 {[%emt 0:00:05]} 4. Nf3 {[%emt 0:00:25]} Bg7 {[%emt 0:00:05]} 5. O-O {[%emt 0:00:18]} O-O {[%emt 0:00:04]} 6. b3 {[%emt 0:00:42]} d6 {[%emt 0:00:46][%cal Bd7d6,Bd6e5,Be5e4][%mdl 32]} 7. Bb2 {[%emt 0:00:09]} c6 {[%emt 0:05:21]} 8. c4 {[%emt 0:05:19]} Qe8 {[%emt 0:01:32]} 9. Nc3 {[%emt 0:05:03]} Na6 {[%emt 0:03:07]} 10. Qd3 {[%emt 0:01:56] A88: Dutch Defence: Leningrad System: 5 Nf3 0-0 6 0-0 d6 7 Nc3 c6.} (10. Re1 $14) 10... e5 $1 $11 {[%emt 0:08:48] [#]} 11. dxe5 $146 {[%emt 0:10:58]} ({Predecessor:} 11. Ng5 h6 12. dxe5 dxe5 13. Nh3 g5 14. f3 Rf7 15. Rad1 Be6 16. Nf2 Rd7 17. Qe3 Rxd1 18. Rxd1 {0-1 (51) Wickenfeld,S (2076)-Quast,M (2113) Nordrheinwestfalen 2012}) 11... dxe5 {[%emt 0:00:40]} 12. Qd6 {[%emt 0:00:52]} e4 {[%emt 0:02:09]} 13. Nd4 {[%emt 0:00:21]} (13. Ng5 $11 {remains equal.}) 13... Ng4 {[%emt 0:08:59]} (13... Nh5 $1 $17 {aiming for ...Be5.} 14. Rad1 Rf6) 14. Nc2 $15 {[%emt 0:15:33]} Be6 {[%emt 0:09:59][%cal Of5f4]} 15. Rad1 {[%emt 0:02:43]} Be5 {[%emt 0:10:13]} 16. Qd2 {[%emt 0:02:32]} Qe7 {[%emt 0:07:53]} 17. Ba3 {[%emt 0:03:56]} Qf6 {[%emt 0:02:24]} 18. Na4 {[%emt 0:01:03]} (18. Bxf8 $11 Rxf8 19. Nd4) 18... Rfd8 {[%emt 0:00:55]} 19. Qc1 {[%emt 0:00:17]} b5 {[%emt 0:02:09]} 20. cxb5 {[%emt 0:04:56]} cxb5 {[%emt 0:00:05]} 21. Nc5 {[%emt 0:00:34]} Nxc5 {[%emt 0:01:22]} 22. Bxc5 {[%emt 0:00:05]} Rdc8 {[%emt 0:03:58]} 23. Ne3 {[%emt 0:01:56]} Nxe3 {[%emt 0:02:33]} 24. Qxe3 {[%emt 0:00:07]} a5 {[%emt 0:03:15]} 25. f4 {[%emt 0:12:42]} (25. f3 {is interesting.} f4 26. Qxe4 Bf5 27. Qb7) 25... Bc3 {[%emt 0:01:48]} 26. Bd4 {[%emt 0:05:04]} Bxd4 {[%emt 0:00:18]} 27. Rxd4 {[%emt 0:00:55]} Rc2 {[%emt 0:03:09]} (27... a4 $15) 28. Rd2 {[%emt 0:01:16]} (28. Rd6 {seems wilder.} Rxa2 29. Qb6 Re8 30. Qxb5 Kf8 31. Rc1) 28... Qc3 {[%emt 0:07:03]} (28... Rc6 {with more complications.} 29. Rfd1 a4 30. Rd6 Rxd6 31. Rxd6 Qa1+) 29. Qxc3 {[%emt 0:00:32]} Rxc3 {[%emt 0:00:04]} 30. Rfd1 {[%emt 0:00:39]} (30. Rd6 $15 Bf7 31. g4) 30... Kf7 {[%emt 0:01:27]} 31. Rb2 {[%emt 0:05:09]} (31. Rd6 $17) 31... b4 {[%emt 0:02:26]} (31... Rac8 $19 32. Kf2 R8c7) 32. Rd4 {[%emt 0:01:54]} (32. Re1 $17) 32... h5 $19 {[%emt 0:02:51]} 33. Kf2 {[%emt 0:10:34]} (33. Rbd2 $142) 33... Ke7 $2 {[%emt 0:02:18]} (33... e3+ $1 $19 34. Ke1 Rac8) 34. e3 $1 $15 {[%emt 0:00:16]} Rac8 {[%emt 0:00:44]} 35. Bf1 {[%emt 0:01:00]} Rc2+ {[%emt 0:00:40]} (35... h4 $5) 36. Rd2 {[%emt 0:00:14]} Rxb2 {[%emt 0:00:08]} 37. Rxb2 {[%emt 0:00:03][%mdl 4096] Endgame KRB-KRB} Rc1 {[%emt 0:01:15]} 38. Rd2 {[%emt 0:01:10]} (38. Be2 $11) 38... Rc5 {[%emt 0:02:55]} (38... a4 $15 39. bxa4 Bxa2 $1 {[%mdl 512]}) 39. Be2 $11 {[%emt 0:00:50]} Rc3 {[%emt 0:00:24]} 40. Bd1 {[%emt 0:00:29]} a4 {[%emt 0:02:30]} 41. Rb2 {[%emt 0:04:12][%mdl 8192]} (41. bxa4 $11 {and White stays safe.} Ra3 42. Be2) 41... a3 $2 {[%emt 0:01:10]} (41... Rc1 $1 $19 {[%cal Rc1d1]} 42. Ke2 axb3 43. axb3 Rc3) 42. Rc2 $15 {[%emt 0:00:51]} Rd3 {[%emt 0:01:24]} 43. Be2 {[%emt 0:00:22] [#]} ({Only move:} 43. Ke2 $1 $15) 43... Rd7 {[%emt 0:00:28]} ({Black should try} 43... Bxb3 $1 $17 {[%mdl 512]} 44. axb3 (44. Bxd3 $2 exd3 45. Rd2 Bd5 $19) 44... Rxb3) 44. h4 {[%emt 0:00:40] The position is equal.} Bd5 {[%emt 0:00:59]} 45. Ke1 {[%emt 0:00:18]} Kd6 {[%emt 0:00:25]} 46. Rd2 {[%emt 0:00:24]} Kc5 {[%emt 0:00:22]} 47. Rc2+ {[%emt 0:00:13]} Kb6 {[%emt 0:00:37]} 48. Rd2 $1 {[%emt 0:00:48]} Kc5 {[%emt 0:00:31]} 49. Rc2+ {[%emt 0:00:04]} Kb6 {[%emt 0:00:39] Weighted Error Value: White=0.32/Black=0.34} 1/2-1/2

[Event "Kvika Banki League Iceland 2022-23"]
[Site "Reykjavik"]
[Date "2022.10.15"]
[Round "3.6"]
[White "Einarsson, Arnthor"]
[Black "Finnsson, Johann Arnar"]
[Result "1-0"]
[ECO "D52"]
[WhiteElo "2173"]
[BlackElo "1891"]
[Annotator "TA"]
[PlyCount "93"]
[EventDate "2022.10.13"]
[EventType "team-tourn"]
[EventCountry "ISL"]
[SourceTitle "playchess.com"]
[Source "ChessBase"]
[SourceQuality "1"]
[TimeControl "5400+30"]

{[%evp 12,93,52,23,18,18,18,21,45,36,58,22,27,18,16,8,-14,-20,-14,-31,16,-8,-12,-15,0,-2,-12,-66,27,28,29,0,0,0,0,-55,2,8,195,175,225,240,213,229,356,362,978,935,796,720,710,603,643,627,879,864,1010,1010,986,970,975,969,941,927,858,824,1050,962,1029,1027,1023,962,5901,5297,5614,5534,2843,2732,6652,6540,6604,6440,5042,5197]} 1. d4 {[%emt 0:00:04]} d5 {[%emt 0:00:30]} 2. c4 {[%emt 0:00:10]} e6 {[%emt 0:00:12]} 3. Nc3 {[%emt 0:00:08]} Nf6 {[%emt 0:00:17]} 4. Bg5 {[%emt 0:00:40]} Nbd7 {[%emt 0:00:10]} 5. Nf3 {[%emt 0:00:08]} c6 {[%emt 0:00:10]} 6. e3 {[%emt 0:00:34]} Bd6 {[%emt 0:01:30]} 7. Qc2 {[%emt 0:00:32]} O-O {[%emt 0:00:29] D52: Queen's Gambit Declined: Cambridge Springs Variation.} 8. Bd3 {[%emt 0:00:05][%cal Od3h7] aiming for Bxh7+!} h6 {[%emt 0:00:16]} 9. Bh4 {[%emt 0:00:25]} dxc4 {[%emt 0:00:13] The position is equal.} 10. Bxc4 {[%emt 0:00:05]} b5 {[%emt 0:03:21]} 11. Bd3 {[%emt 0:00:31]} Bb7 {[%emt 0:00:11]} 12. e4 {[%emt 0:00:30] Black must now prevent e5.} e5 {[%emt 0:17:40]} 13. dxe5 {[%emt 0:00:39]} Nxe5 {[%emt 0:00:36]} 14. Nxe5 {[%emt 0:00:30]} Bxe5 {[%emt 0:00:06]} 15. O-O {[%emt 0:00:56] [#]} Qb8 $146 {[%emt 0:06:17]} (15... Qd6 $15 {might be stronger.} 16. Bg3 Bxg3 17. hxg3 Rfe8) ({Predecessor:} 15... a6 16. Kh1 Qc7 17. Bxf6 Bxf6 18. Nd5 Qe5 19. Nxf6+ Qxf6 20. a4 Rac8 21. Rac1 Rfd8 {½-½ (32) Koval,D (2118)-Tomanek,R (1918) Tatranske Zruby 2010}) 16. h3 {[%emt 0:06:02]} Nh5 {[%emt 0:11:07]} 17. Be7 {[%emt 0:07:11]} Re8 {[%emt 0:00:28]} 18. Bc5 {[%emt 0:00:09]} Nf4 {[%emt 0:00:42] And now ...Qd8 would win.} 19. Ne2 {[%emt 0:00:39]} ({Better is} 19. Be3 $11) 19... a6 {[%emt 0:01:12]} (19... Nxd3 $15 20. Qxd3 Bxb2) 20. Nxf4 $11 {[%emt 0:04:47]} Bxf4 {[%emt 0:00:08]} 21. Rae1 {[%emt 0:01:45]} Qe5 {[%emt 0:01:43]} 22. b4 {[%emt 0:02:57]} Rad8 {[%emt 0:01:25]} 23. Qb3 {[%emt 0:01:15]} ({White should play} 23. Bb6 $11) 23... Re6 {[%emt 0:00:39]} (23... Bc8 $15) 24. Bb1 {[%emt 0:01:31]} Rg6 $2 {[%emt 0:11:22] Loses the game.} (24... Qh5 $11 {and Black has nothing to worry.}) 25. Rd1 $18 {[%emt 0:00:32]} Rxd1 {[%emt 0:02:37]} (25... Rb8 $142 26. a3 (26. Rd7 Bc8 $18) 26... Qg5) 26. Rxd1 {[%emt 0:00:17] Threatens to win with Rd8+. Dancing on a razor blade.} Qg5 {[%emt 0:00:09][%csl Gg6][%cal Rg5g2] [#] Inhibits Rd8+.} 27. Qf3 {[%emt 0:00:44][%cal Oe4e5] Hoping for e5!} Bc8 {[%emt 0:10:33]} (27... Be5 {is a better defense.} 28. Qg4 Qxg4 29. hxg4 Kh7) 28. e5 $1 {[%emt 0:00:43]} Re6 {[%emt 0:01:18] [#]} (28... Bxe5 29. Bxg6 Qxg6) 29. Qxf4 $3 {[%emt 0:00:11][%mdl 512] White is clearly winning.} Re8 {[%emt 0:01:58]} 30. Qxg5 {[%emt 0:00:20]} hxg5 {[%emt 0:00:05]} 31. Be7 {[%emt 0:02:16]} g4 {[%emt 0:01:01] [#]} 32. hxg4 $1 {[%emt 0:00:41]} Bxg4 {[%emt 0:00:07]} (32... Be6 33. Bc5) 33. f3 {[%emt 0:00:42]} Be6 {[%emt 0:00:10]} 34. Rd8 {[%emt 0:00:18]} Rxd8 {[%emt 0:00:13]} 35. Bxd8 {[%emt 0:00:23]} Kf8 {[%emt 0:00:15]} 36. a3 {[%emt 0:00:14]} Ke8 {[%emt 0:00:11]} 37. Bg5 {[%emt 0:00:52]} Kd7 {[%emt 0:00:19]} 38. Kf2 {[%emt 0:00:32]} Bc4 {[%emt 0:01:00]} 39. Bf5+ {[%emt 0:00:24]} Kc7 {[%emt 0:00:20]} 40. Ke3 {[%emt 0:00:14]} g6 {[%emt 0:00:30]} 41. Bh3 {[%emt 0:00:19]} Bd5 {[%emt 0:00:20]} 42. Kd4 {[%emt 0:00:16]} Bc4 {[%emt 0:00:23]} 43. Kc5 {[%emt 0:00:24]} Bd5 {[%emt 0:00:17]} 44. Bf4 {[%emt 0:00:44]} Kb7 {[%emt 0:00:27]} 45. Kd6 {[%emt 0:00:14]} Bc4 {[%emt 0:00:24]} 46. Bd7 {[%emt 0:00:17]} Bd5 {[%emt 0:00:22]} 47. Be3 {[%emt 0:00:09] Weighted Error Value: White=0.18 (very precise) /Black=0.43} 1-0